Cogmind - Beta 16.1 @@@ ROGUE MODE // 2026.02.16 @ 22:03:16 // Winter2019/RPGLIKE Player: Fellun Result: Destroyed by G-47 Trooper with Particle Gun Performance ------------- Evolutions (0) 0 Regions Visited (3) 600 Robots Destroyed (14) 70 Value Destroyed (326) 326 Prototype IDs (2) 40 Alien Tech Used (0) 0 Bonus (0) 0 TOTAL SCORE: 1036 Bonus ------- None Cogmind --------- Core Integrity 0/800 Matter 244/300 Energy 350/350 System Corruption 0% Temperature Cool (9) Movement Rolling (90) Location -10/Subcaves Parts ------- > --- POWER (2) -------- Ion Engine Subdweller Power Source > --- PROPULSION (3) --- Wheel Compact Wheel Subdweller Monowheel > --- UTILITY (2) ------ Subdweller Optics Signal Interpreter > --- WEAPON (2) ------- Assault Rifle Assault Rifle > --- INVENTORY (2) ---- Scrap Shield Peak State ------------ > --- POWER ------------ Ion Engine Subdweller Power Source > --- PROPULSION ------- Wheel Compact Wheel Subdweller Monowheel > --- UTILITY ---------- Subdweller Optics Signal Interpreter > --- WEAPON ----------- Small Laser Assault Rifle > --- INVENTORY -------- Sensor Array Assault Rifle [Rating: 12] Favorites ----------- Power Ion Engine Engine Ion Engine Propulsion Wheel Wheel Wheel Utility Signal Interpreter Device Subdweller Optics Storage Medium Matter Pod Processor Signal Interpreter Weapon Assault Rifle Energy Gun Small Laser Ballistic Gun Assault Rifle Build | -11 -10 -10 -10 ------- Run | Yrd Mat Min Sub Slots Evolved 5 | 4 . . 1 Power 1 | 1 . . . Propulsion 2 | 1 . . 1 Utility 1 | 1 . . . Weapon 1 | 1 . . . Parts Attached 13 | 6 3 . 4 Power 3 | 2 . . 1 Engine 3 | 2 . . 1 Core . | . . . . Reactor . | . . . . Propulsion 3 | 2 . . 1 Treads . | . . . . Leg . | . . . . Wheel 3 | 2 . . 1 Hover . | . . . . Flight . | . . . . Utility 4 | . 3 . 1 Device 2 | . 1 . 1 Storage 1 | . 1 . . Processor 1 | . 1 . . Hackware . | . . . . Protection . | . . . . Artifact . | . . . . Weapon 3 | 2 . . 1 Energy Gun 1 | 1 . . . Energy Cannon . | . . . . Ballistic Gun 2 | 1 . . 1 Ballistic Cannon . | . . . . Launcher . | . . . . Special Weapon . | . . . . Impact Weapon . | . . . . Slashing Weapon . | . . . . Piercing Weapon . | . . . . Special Melee Weapon . | . . . . Unidentified Prototypes . | . . . . Parts Lost . | . . . . Power . | . . . . Propulsion . | . . . . Utility . | . . . . Weapon . | . . . . Highest Loss Streak . | . . . . To Critical Strikes . | . . . . Average Backups 1 | . 1 1 1 Power . | . . . . Propulsion . | . . . . Utility . | . . . . Weapon . | . 1 1 . Tool/Special . | . . . . Unused Backups 1 | . . . 1 Power . | . . . . Propulsion . | . . . . Utility 1 | . . . 1 Weapon . | . . . . Tool/Special . | . . . . Average Slot Usage (%) 98 | . 95 100 100 Engine 23 | . 25 25 22 Wheel 28 | . 25 25 31 Device 7 | . 1 12 11 Storage 2 | . 7 . . Processor 11 | . 11 12 11 Energy Gun 8 | . 12 12 4 Ballistic Gun 15 | . 12 12 18 Peak Build Rating 12 | 6 8 8 12 Average Rating 9 | 5 7 8 10 On Entrance 5 | . 6 8 8 Avg Prop Armor Cover (%) 4 | . . . 4 Naked Turns . | . . . . Heaviest Build 16 | 11 13 12 16 Greatest Support 46 | 26 26 26 46 Greatest Overweight (x) . | . . . . Average Overweight (x) . | . . . . Largest Inventory Capacity 2 | 1 1 1 2 Average Capacity 1 | 1 1 1 1 Most Carried 2 | 1 1 1 2 Average Carried 1 | . 1 1 1 Final Capacity 2 | 1 1 1 2 Final Carried 2 | 1 1 1 2 Class Distribution -------------------- 100% | Mutant Dominant Class ---------------- Mutant | -10/Materials Mutant | -10/Mines Mutant | -10/Subcaves Resources | -11 -10 -10 -10 ----------- Run | Yrd Mat Min Sub Matter Collected 537 | 259 140 . 138 Remotely . | . . . . Salvage Created 382 | . 248 . 134 Parts 27 | . 14 . 13 Haulers Intercepted . | . . . . Recyclers Shooed . | . . . . Parts Field Recycled . | . . . . Retrieved Matter . | . . . . Parts Self-Destructed 8 | . . . 8 Prevented . | . . . . Parts Restored . | . . . . Kills | -11 -10 -10 -10 ------- Run | Yrd Mat Min Sub Combat Hostiles Destroyed 14 | . 9 . 5 Guns 14 | . 9 . 5 Classes Destroyed 3 | . 2 . 1 Swarmer 7 | . 6 . 1 Grunt 4 | . 3 . 1 Subdweller 3 | . . . 3 Best Kill Streak 3 | . 3 . 1 Combat Bots Only 3 | . 3 . 1 Max Kills in Single Turn 2 | . 2 . 1 Gunslinging 1 | . 1 . . Exploded . | . . . . Melee . | . . . . Uniques/NPCs Destroyed . | . . . . Combat | -11 -10 -10 -10 -------- Run | Yrd Mat Min Sub Hostile Shots Fired 108 | . 35 . 73 Missed 32 | . 8 . 24 Hits 76 | . 27 . 49 Projectile 76 | . 27 . 49 AOE 1 | . . . 1 Critical Strikes 1 | . . . 1 Damage Taken 1192 | . 242 . 950 Core 958 | . 189 . 769 Absorbed by Shields . | . . . . Redirected to Core 799 | . 161 . 638 Core Remaining (%) 100 | 100 . . . Volleys Fired 60 | . 25 . 35 Largest 2 | . 2 . 2 Hottest 60 | . 60 . 60 Shots Fired 119 | . 49 . 70 Gun 119 | . 49 . 70 Cannon . | . . . . Launcher . | . . . . Special . | . . . . Kinetic 73 | . 25 . 48 Thermal 46 | . 24 . 22 Explosive . | . . . . Electromagnetic . | . . . . Robot Hit Streak 25 | . 5 . 25 Robot Miss Streak 7 | . 7 . 4 Penetration Max . | . . . . Secondary Targets 2 | . 2 . . Max Gunslinging Chain 1 | . 1 . . Shots Hit Robots 78 | . 28 . 50 Core Hits 25 | . 13 . 12 Critical Kills . | . . . . Critical Parts Destroyed . | . . . . Critical Strikes . | . . . . Melee Attacks . | . . . . Impact . | . . . . Slashing . | . . . . Piercing . | . . . . Sneak Attacks . | . . . . Combat Hostiles . | . . . . Follow-up Attacks . | . . . . Damage Inflicted 923 | . 342 . 581 Guns 923 | . 342 . 581 Cannons . | . . . . Explosions . | . . . . Melee . | . . . . Ramming . | . . . . Kinetic 565 | . 203 . 362 Thermal 358 | . 139 . 219 Explosive . | . . . . Electromagnetic . | . . . . Impact . | . . . . Slashing . | . . . . Piercing . | . . . . Highest Corruption . | . . . . Average Corruption . | . . . . Corruption Purged . | . . . . Corruption Blocked . | . . . . Overload Shots . | . . . . Overflow Damage . | . . . . Projectiles . | . . . . Explosions . | . . . . Melee . | . . . . Knockbacks . | . . . . Impact . | . . . . Kinetic . | . . . . Secondary . | . . . . Self-Inflicted Damage . | . . . . Shots . | . . . . Rammed . | . . . . Targets Rammed . | . . . . Kicked . | . . . . Crushed . | . . . . Highest Temperature 254 | . . . 254 Average Temperature 130 | . . . 130 Received Heat Transfer 680 | . 60 . 620 Siege Activations . | . . . . Martial Activations . | . . . . Shielding Activations . | . . . . Robots Disrupted . | . . . . Combat Hostiles . | . . . . Robots Corrupted . | . . . . Combat Hostiles . | . . . . Parts Fried . | . . . . Impact Corruptions . | . . . . Robots Melted . | . . . . Combat Hostiles . | . . . . Parts Melted 1 | . . . 1 Heat Transferred 825 | . 325 . 500 Parts Sabotaged . | . . . . Parts Stolen . | . . . . Parts Stripped . | . . . . Power Chain Reactions . | . . . . Alert | -11 -10 -10 -10 ------- Run | Yrd Mat Min Sub Maximum Alert Level . | . . . . Low Security (%) 100 | 100 100 100 . Level 1 . | . . . . Level 2 . | . . . . Level 3 . | . . . . Level 4 . | . . . . Level 5 . | . . . . High Security . | . . . . Max Security . | . . . . Peak Influence 91 | . 91 19 . Initial 19 | . . 19 . Average 24 | . 32 6 . Influence Increases 348 | . 278 . 70 Destroy 0b10 Robot/C 220 | . 180 . 40 Destroy Leader 30 | . 30 . . Successful Hack 7 | . 7 . . Select Force Hacks 30 | . 30 . . Destroy Structure 1 | . 1 . . Lose Combat Pursuer 60 | . 30 . 30 Influence Decreases 328 | . 227 51 50 Entered New Map 32 | . . 32 . Time Decay 206 | . 137 19 50 Purge Threat 90 | . 90 . . Squads Dispatched 2 | . 2 . . Investigation 1 | . 1 . . Extermination . | . . . . Reinforcement 1 | . 1 . . Assault . | . . . . Garrison . | . . . . Intercept . | . . . . Searches Triggered . | . . . . Construction Impeded . | . . . . Haulers Reinforced . | . . . . Active Scanning Responses . | . . . . Cargo Convoy Interrupts . | . . . . Stealth | -11 -10 -10 -10 --------- Run | Yrd Mat Min Sub Distress Signals 1 | . 1 . . Communications Jammed . | . . . . Distress Signals . | . . . . Times Spotted 27 | . 15 . 12 Peak Tracking Total 7 | . 3 . 7 Tactical Retreats 2 | . 1 . 1 Traps | -11 -10 -10 -10 ------- Run | Yrd Mat Min Sub Traps Triggered . | . . . . Indirectly . | . . . . Trap Hack Attempts . | . . . . Triggered . | . . . . Disarmed . | . . . . Reprogrammed . | . . . . Reused . | . . . . Traps Extracted . | . . . . Installed . | . . . . Triggered . | . . . . Machines | -11 -10 -10 -10 ---------- Run | Yrd Mat Min Sub Machines Disabled . | . . . . Max in Single Turn . | . . . . Machines Repaired . | . . . . Machines Dismantled . | . . . . Machines Sabotaged . | . . . . Overloaded Fab Kills . | . . . . Hacking | -11 -10 -10 -10 --------- Run | Yrd Mat Min Sub Machines Accessed 5 | . 5 . . Terminals 4 | . 4 . . Fabricators . | . . . . Repair Stations . | . . . . Recycling Units 1 | . 1 . . Scanalyzers . | . . . . Garrison Access . | . . . . Total Hacks 12 | . 12 . . Successful 9 | . 9 . . Failed 3 | . 3 . . Catastrophic 2 | . 2 . . Database Lockouts . | . . . . Manual 6 | . 6 . . Terminals 10 | . 10 . . Fabricators . | . . . . Repair Stations . | . . . . Recycling Units 2 | . 2 . . Scanalyzers . | . . . . Garrison Access . | . . . . Terminal Hacks 7 | . 7 . . Record 4 | . 4 . . Prototype ID Bank 1 | . 1 . . Branch Access Points 1 | . 1 . . Unreport Threat 1 | . 1 . . Fabricator Hacks . | . . . . Repair Station Hacks . | . . . . Recycling Unit Hacks . | . . . . Scanalyzer . | . . . . Garrison Access Hacks . | . . . . Unauthorized Hacks 1 | . 1 . . Terminals . | . . . . Fabricators . | . . . . Repair Stations . | . . . . Recycling Units 1 | . 1 . . Tunnel 1 | . 1 . . Scanalyzers . | . . . . Garrison Access . | . . . . Data Cores Recovered . | . . . . Used . | . . . . Hacking Detections 4 | . 4 . . Full Trace Events . | . . . . Feedback Events . | . . . . Feedback Blocked . | . . . . Robot Schematics Acquired . | . . . . Robots Built . | . . . . Authchips . | . . . . Time . | . . . . Total Robot Build Rating . | . . . . Part Schematics Acquired . | . . . . Parts Built . | . . . . Authchips . | . . . . Time . | . . . . Total Part Build Rating . | . . . . Part Studies Acquired . | . . . . Parts Repaired . | . . . . Time . | . . . . Parts Recycled . | . . . . Recycled Matter . | . . . . Retrieved Matter . | . . . . Retrieved Components . | . . . . Parts Scanalyzed . | . . . . Part Schematics Acquired . | . . . . Parts Damaged . | . . . . Bothacking | -11 -10 -10 -10 ------------ Run | Yrd Mat Min Sub Used RIF Installer . | . . . . Robots Hacked . | . . . . Non-combat . | . . . . Combat . | . . . . Robot Hacks Applied . | . . . . Relay Couplers Released . | . . . . Fabnet Peak Effective % . | . . . . Robots Rewired . | . . . . Allies Hacked . | . . . . Hacks Repelled . | . . . . Allies | -11 -10 -10 -10 -------- Run | Yrd Mat Min Sub Total Allies . | . . . . Largest Group . | . . . . Highest-Rated Group . | . . . . Highest-Rated Ally . | . . . . Total Orders . | . . . . Ally Attacks . | . . . . Total Damage . | . . . . Kills . | . . . . Allies Corrupted . | . . . . Allies Melted . | . . . . Intel | -11 -10 -10 -10 ------- Run | Yrd Mat Min Sub Active Infowar (turns) 574 | . 28 81 465 Optics 302 | . . . 302 Sensors 272 | . 28 81 163 Robot Analysis Total . | . . . . Derelict Logs Recovered 1 | . . . 1 Drone Launches . | . . . . Drone Recoveries . | . . . . Exploration | -11 -10 -10 -10 ------------- Run | Yrd Mat Min Sub Turns Passed 956 | 63 347 81 465 Spaces Moved 767 | 55 276 90 346 Core 5 | 5 . . . Treads . | . . . . Legs . | . . . . Wheels 762 | 50 276 90 346 Hover . | . . . . Flight . | . . . . Fastest Speed 50 | 50 90 90 90 Average Speed 91 | 86 90 90 93 Slowest Speed 96 | 90 90 90 96 Overloaded Moves . | . . . . Propulsion Burnouts . | . . . . Robots Hopped . | . . . . Potential Cave-ins . | . . . . Cave-ins Triggered . | . . . . Exploration Rate (%) 25 | 3 53 17 30 Regions Visited 3 Branch Regions 2 Pre-discovered Areas 2 | . 1 1 . Known Exits Taken 2 | . 1 1 . Unknown Exits Taken 1 | 1 . . . Scrap Searched . | . . . . Spaces Dug . | . . . . Terrain Destroyed . | . . . . Melee . | . . . . Projectile . | . . . . AOE . | . . . . Terrain Rammed . | . . . . Walls Destroyed . | . . . . Machines Disabled . | . . . . Actions | -11 -10 -10 -10 --------- Run | Yrd Mat Min Sub Total 898 | 67 324 89 418 Wait 46 | 6 13 . 27 Move 764 | 54 275 89 346 Hop . | . . . . Pick Up 3 | 1 . . 2 Fast Attach 10 | 6 3 . 1 Attach . | . . . . Detach . | . . . . Swap 4 | . . . 4 Drop 4 | . 1 . 3 Fire 60 | . 25 . 35 Melee . | . . . . Ram . | . . . . Kick . | . . . . Crush . | . . . . Escape Stasis . | . . . . Rewire . | . . . . Trap . | . . . . Miscellaneous 7 | . 7 . . Route ------- -11/Scrapyard -10/Materials (discovered 2 exits: *Mat / *Min) -10/Mines -10/Subcaves (discovered 2 exits: [*Mat] / [*Rec]) History --------- Turn | Location | Event 1 | -11/Scrapyard | Upgraded with Power slot (x1) 1 | -11/Scrapyard | Upgraded with Propulsion slot (x1) 1 | -11/Scrapyard | Upgraded with Utility slot (x1) 1 | -11/Scrapyard | Upgraded with Weapon slot (x1) 15 | -11/Scrapyard | Discovered new exit (range 15) 64 | -11/Scrapyard | Entered Materials 243 | -10/Materials | Identified exit to Mines 286 | -10/Materials | Discovered new exit (range 10) 294 | -10/Materials | Identified exit to Materials 314 | -10/Materials | Build established: Mutant 411 | -10/Materials | Entered Mines 413 | -10/Mines | Reached level 2 421 | -10/Mines | Met a Derelict bent on vengeance 445 | -10/Mines | Learned location of Storage (-8) 484 | -10/Mines | Discovered new exit (range 10) 490 | -10/Mines | Identified exit to Subcaves 492 | -10/Mines | Entered Subcaves 493 | -10/Subcaves | Approached by a straggling Scientist 493 | -10/Subcaves | Learned location of 1 exit from Materials 504 | -10/Subcaves | Ambushed by Subdwellers from Twisted Machinery 556 | -10/Subcaves | Core integrity fell below 50% 584 | -10/Subcaves | Core integrity fell below 20% 597 | -10/Subcaves | Upgraded with Propulsion slot (x1) 716 | -10/Subcaves | Discovered new exit (range 17) 775 | -10/Subcaves | Discovered new exit (range 21) 866 | -10/Subcaves | A swath of the cavern ceiling suddenly collapsed 957 | -10/Subcaves | Destroyed by G-47 Trooper with Particle Gun Last Messages --------------- 00657_ Dropped Sensor Array. 00660_ Dropped Sml. Laser. 00661_ Acquired Scrap Shield. 00662_ Acquired 14 matter. 00716_ EXIT=FOUND 00720_ S-10 Pest destroyed. 00724_ 7F-D38(R) destroyed. 00730_ Destroyed Lgt. Ion Engine. 00736_ S-10 Pest destroyed. 00775_ EXIT=FOUND 00795_ Subatomizers dissect the Wheel. 00808_ Acquired 11 matter. 00845_ Sub. Monowheel shoots sparks and powers down. 00850_ Acquired 13 matter. A swath of the cavern ceiling suddenly collapses. 00896_ Subatomizers dissect the Mak. Leg. 00930_ Acquired 14 matter. [internal `msg] 00938_ Subatomizers dissect the Mak. Leg. 00956_ G-34 Mercenary destroyed. Map ----- +----------------------------------------------------+ | ?????????????????????????????????????????????????? | | ?????????????????????????????????????????????????? | | ?????????????????????????????????????????????????? | | ?????????????????????????????????????????????????? | | ?????????????????????????????????????????????????? | | ??????????????????????? #????????????????????????? | | ????????????????????? ????####????????????????? | | ????????????????????? ????# #????????????????? | | ????????????????????? ???## ##???????????????? | | ????????????????????? ???# #???????????????? | | ?????????????????????? #??# #???????????????? | | ?????????????????????? ??## ####????????????? | | ?????????????????????? ##?## ##???????????? | | ?????????????????????? #??### #???????????? | | ??????????????????????# #???# ##???????????? | | ?????????????????????## g ##??# #????????????? | | ?????????????????????# #### #????????????? | | ?????????????????????# # ##????????????? | | ?????????????????????# =% ## #????????????? | | ????????????????????## = ## ###????????????? | | ?????????????????#### ## #??????????????? | | ????????????????## ### #??????????????? | | ???????????????## #?# ##??????????????? | | ??????????????## #?# ##??????????????? | | #????######???# #?## #??????????????? | | ##???# # ###### @### #??????????????? | | ##### # <%= ###??????????????? | | ## [ = / ###??????????????? | | ## *%! #??????????????? | | ##### = ##??????????????? | | # ##?## ### ## ##???????????????? | | ## ### # ## ######?###????????????? | | ?##### % ## % ####### ##???????????? | | ?????## %% ## % ##???????????? | | ??????## # # # "##???????????? | | ???????#### ####### #""##???????????? | | ??????????#####?????# #"# ##???????????? | | ????????????????????## % "#"# #???????????? | | ?????????????????????## ""## #???????????? | | ??????????????????????# "#[""# #??????????? | | ??????????????????????## ##### ##??????????? | | ???????????????????????## ##???? #???????????? | | ????????????????????????# ##????? #???????????? | | ???????????????????????## ###??? #???????????? | | ??????????????????????## ### #???????????? | | ???????????????????#### #"### #???????????? | | ??????????????????## """# #????????????? | | ??????????????????# ##### #????????????? | | ??????????????????# ### ##??? #????????????? | | ??????????????????## #?## ###### #????????????? | +----------------------------------------------------+ Best States ------------- Heat Dissipation 55 Energy Generation 20 Energy Capacity 350 Matter Stores 400 Matter Capacity 400 Sight Range 21 Robot Scan Range 14 Terrain Scan Density 10 Evasion (%) 44 Item Schematics ----------------- None Robot Schematics ------------------ None Fabricated ------------ Nothing Repaired ---------- Nothing Studied --------- None Alien Tech Used ----------------- None Achievements -------------- None Challenges ------------ None RPGLIKE | -11 -10 -10 -10 --------- Run | Yrd Mat Min Sub Levels Raised 1 | . . 1 . XP Earned 5900 | 3000 1200 500 1200 XP Spent 4160 | 2700 . . 1460 Upgrades 16 | 10 . . 6 Power Slot 1 | 1 . . . Propulsion Slot 2 | 1 . . 1 Utility Slot 1 | 1 . . . Weapon Slot 1 | 1 . . . Core Integrity 4 | . . . 4 Heat Dissipation 5 | 5 . . . Inventory Capacity 2 | 1 . . 1 Protomatter Created 134 | . 49 . 85 Integrity Restored 147 | . 147 . . Core 147 | . 147 . . Protomatter Decayed 123 | . . . 123 Game ------ Seed SystemInsulationInterrupter Manual? 0 Play Time 00:09:44 Cumulative 750.6 hours Start 2026.02.16 @ 21:56:10 End 2026.02.16 @ 22:03:16 Sessions 1 Manual Loads 0 Difficulty Rogue Special Mode Winter2019/RPGLIKE Game No. 68 Rogue 56 Adventurer 9 Explorer 3 Win Type - Total 10 Types 4/0/0/2/0/1/1/0/1/1 Lore% 60 Gallery% 58 Achievement% 50 Wizard Run 0 Options --------- Layout 0 ASCII 0 Keyboard 0 Movement Mouse Keybinds 0 Fullscreen 2 Font 18/SmallcapsGlow Map View 76x50 Zoom Use 0% Tactical HUD 1 Map Filters NONE Filters NONE Steam 1 RUN: d10505bc-0a91-4da0-b4e4-be7624a44cca